bitfinex/quotes_SOLUSD_20250929
["timestamp","ask_amount","ask_price","bid_price","bid_amount"]
[1759183739127,0.65,214.03,213.99,0.66]
[1759183741016,4.67221813,214.04,214.0,0.66]
[1759183741337,0.65,214.03,213.98,0.66]
[1759183741929,0.65,214.03,213.96,16.3580813]
[1759183742137,0.65,214.03,213.99,0.66]
[1759183744524,5.32224298,214.03,213.99,0.66]
[1759183744833,0.65,214.03,213.99,0.66]
[1759183745023,0.65,214.03,213.99,5.33304457]
[1759183745824,131.6,214.05,214.0,0.66]
[1759183746128,132.25,214.05,214.0,0.66]
[1759183746326,0.65,214.04,214.0,5.33275696]
[1759183746923,131.6,214.05,214.01,0.66]
[1759183747117,132.25,214.05,214.01,0.66]
[1759183747332,3.12566877,214.04,214.01,0.66]
[1759183747720,3.77566877,214.04,214.0,4.67275696]
[1759183747920,3.77566877,214.04,214.0,5.33275696]
[1759183748740,3.7773759,214.04,214.0,5.33275696]
[1759183750438,3.1273759,214.04,213.98,4.67333395]
[1759183750645,0.65,214.03,213.99,0.66]
[1759183750844,3.1273759,214.04,214.0,0.66]
[1759183751136,3.7773759,214.04,214.0,0.66]
[1759183751343,3.1273759,214.03,214.0,0.66]
[1759183753137,3.1273759,214.02,214.0,5.33278373]
[1759183753342,3.1273759,214.03,214.01,0.66]
[1759183753652,3.13146942,214.04,214.01,0.66]
[1759183753844,3.13146942,214.03,214.01,0.66]
[1759183754153,132.25,214.05,214.01,0.66]
[1759183754333,3.13178227,214.04,214.01,5.33263475]
[1759183754532,3.13178227,214.03,214.01,5.33263475]
[1759183754749,132.25,214.05,214.01,5.33263475]
[1759183754932,3.13187527,214.04,214.01,5.33263475]
[1759183755252,3.13187527,214.03,214.01,5.33263475]
[1759183755442,132.25,214.05,213.98,42.35666884]
[1759183755645,3.13277578,214.04,213.99,0.66]
[1759183755820,0.66,214.09,214.0,36.20574302]
[1759183756021,3.13291001,214.08,214.01,0.66]
[1759183756241,3.13291001,214.07,214.01,0.66]
[1759183756541,3.13291001,214.06,214.01,0.66]
[1759183756871,0.66,214.09,214.02,4.67246051]
[1759183757028,3.13358663,214.08,214.02,4.67246051]
[1759183757356,3.13358663,214.07,214.03,3.54574302]
[1759183757519,0.66,214.11,214.04,0.66]
[1759183757725,3.13517025,214.1,214.04,0.66]
[1759183757927,3.13517025,214.09,214.05,26.0]
[1759183758129,3.13517025,214.08,214.06,33.96]
[1759183758344,3.13646204,214.11,214.07,0.66]
[1759183758555,3.13646204,214.1,214.07,0.66]
[1759183758748,0.66,214.11,214.08,4.67115097]
[1759183758945,3.13492798,214.1,214.08,5.33115097]
[1759183759148,0.66,214.13,214.08,5.33115097]
[1759183759350,3.79507447,214.12,214.08,5.33115097]
[1759183759546,3.13507447,214.11,214.08,5.33115097]
[1759183759749,3.13507447,214.1,214.08,5.33115097]
[1759183759949,3.13507447,214.11,214.08,5.33115097]
[1759183760143,3.13507447,214.1,214.08,5.33115097]
[1759183760338,3.13507447,214.11,214.08,5.33115097]
[1759183760642,3.13507447,214.1,214.08,5.33115097]
[1759183760830,3.13507447,214.11,214.09,0.66]
[1759183761039,3.13507447,214.1,214.08,4.67115097]
[1759183761350,3.13507447,214.11,214.08,5.34115097]
[1759183762353,3.13507447,214.11,214.09,0.67]
[1759183762732,3.13507447,214.14,214.09,0.67]
[1759183763059,3.13507447,214.13,214.09,5.34077108]
[1759183763358,3.13507447,214.12,214.09,5.34077108]
[1759183763542,3.78507447,214.12,214.09,5.34077108]
[1759183763743,0.65,214.12,214.09,5.34077108]
[1759183764131,3.78507447,214.12,214.09,5.34077108]
[1759183764332,3.13507447,214.14,214.09,5.34077108]
[1759183764628,3.13507447,214.13,214.09,5.34077108]
[1759183764833,3.78507447,214.13,214.09,5.34077108]
[1759183765033,0.65,214.13,214.09,5.34077108]
[1759183765233,3.78507447,214.13,214.1,0.67]
[1759183765434,0.65,214.13,214.1,0.67]
[1759183765662,3.78507447,214.13,214.08,0.67]
[1759183765855,0.65,214.13,214.09,0.67]
[1759183766161,3.78507447,214.13,214.09,0.67]
[1759183766355,0.65,214.13,214.09,0.67]
[1759183767233,3.13507447,214.14,214.09,5.34088418]
[1759183767462,0.65,214.13,214.09,5.34088418]
[1759183768159,3.13507447,214.14,214.1,0.67]
[1759183768465,3.13507447,214.17,214.11,36.18574302]
[1759183768632,3.13507447,214.17,214.11,36.85574302]
[1759183768837,0.65,214.16,214.11,36.85574302]
[1759183769058,0.65,214.16,214.12,0.67]
[1759183769929,0.65,214.16,214.12,5.34027834]
[1759183771657,3.78507447,214.17,214.14,4.66984215]
[1759183772148,3.13507447,214.17,214.15,0.67]
[1759183772350,131.6,214.18,214.15,0.67]
[1759183772552,0.65,214.21,214.16,0.67]
[1759183772741,3.12236966,214.24,214.17,2.88574302]
[1759183773058,0.65,214.23,214.18,0.67]
[1759183773242,0.65,214.23,214.19,0.67]
[1759183773763,3.32236966,214.25,214.19,7.55433591]
[1759183774062,0.65,214.24,214.19,8.22433591]
[1759183774354,0.65,214.24,214.2,0.67]
[1759183775859,0.2,214.25,214.2,4.66844996]
[1759183776062,0.2,214.25,214.21,0.67]
[1759183776257,0.2,214.25,214.22,0.67]
[1759183776646,0.2,214.25,214.21,2.88574302]
[1759183776647,0.2,214.25,214.23,0.67]
[1759183776848,0.2,214.25,214.24,28.88574302]
[1759183777154,0.2,214.25,214.24,29.55574302]
[1759183777943,0.2,214.25,214.24,8.22340545]
[1759183778264,0.2,214.25,214.24,67.50340545]
[1759183779070,0.85,214.25,214.18,3.79236966]
[1759183779241,0.65,214.24,214.2,26.0]
[1759183779937,0.65,214.23,214.2,26.0]
[1759183780142,0.65,214.22,214.21,26.0]
[1759183781063,0.85,214.25,214.21,26.0]
[1759183781244,0.65,214.24,214.21,26.0]
[1759183783135,5.31772597,214.24,214.21,26.0]
[1759183783339,0.65,214.23,214.21,26.0]
[1759183786371,0.65,214.22,214.2,33.26]
[1759183786543,4.66793171,214.23,214.17,14.87817228]
[1759183786544,0.65,214.21,214.17,14.20817228]
[1759183786875,0.65,214.2,214.13,4.66987857]
[1759183787176,0.65,214.19,214.14,33.26]
[1759183787463,5.31898351,214.18,214.14,33.26]
[1759183787661,0.65,214.18,214.14,33.26]
[1759183787856,5.31878571,214.19,214.14,37.9297943]
[1759183788053,5.31878571,214.19,214.15,0.67]
[1759183788254,0.65,214.18,214.13,26.0]
[1759183788444,0.65,214.18,214.13,33.26]
[1759183788644,0.65,214.17,214.13,33.26]
[1759183788845,0.65,214.16,214.13,33.26]
[1759183789153,0.65,214.15,214.13,33.26]
[1759183789844,4.66920932,214.17,214.13,33.26]
[1759183790048,5.31920932,214.17,214.13,33.26]
[1759183790569,0.65,214.16,214.13,33.26]
[1759183791370,27.19118802,214.23,214.13,33.26]
[1759183791371,0.67,214.18,214.13,33.26]
[1759183791558,0.67,214.17,214.13,33.26]
[1759183792163,5.33919601,214.17,214.13,33.26]
[1759183792469,5.33919601,214.17,214.11,0.67]
[1759183792470,0.67,214.16,214.14,33.26]
[1759183792970,4.66919601,214.17,214.14,33.26]
[1759183793146,5.33919601,214.17,214.14,33.26]
[1759183794169,0.67,214.17,214.14,33.26]
[1759183794567,14.77971098,214.22,214.14,33.26]
[1759183794568,14.26559401,214.21,214.15,0.67]
[1759183794776,0.67,214.2,214.15,0.67]
[1759183794951,4.66831613,214.21,214.15,0.67]
[1759183795275,5.3386634,214.2,214.14,37.92982777]
[1759183795456,5.3386634,214.2,214.14,38.59982777]
[1759183796850,5.3386634,214.2,214.15,5.33952676]
[1759183797177,0.67,214.22,214.16,0.67]
[1759183798158,5.33809821,214.22,214.16,0.67]
[1759183798763,7.7761727,214.23,214.16,5.33939388]
[1759183798969,4.66790219,214.23,214.17,0.67]
[1759183799174,5.33790219,214.23,214.17,0.67]
[1759183799376,8.45669154,214.23,214.17,0.67]
[1759183799769,5.33790219,214.23,214.17,0.67]
[1759183799976,5.33790219,214.23,214.17,5.3391641]
[1759183800160,0.67,214.22,214.17,5.3391641]
[1759183801180,0.67,214.21,214.17,5.3391641]
[1759183803163,4.66819806,214.22,214.18,0.67]
[1759183803486,0.67,214.21,214.14,26.0]
[1759183803663,0.67,214.21,214.15,33.93]
[1759183803864,0.67,214.2,214.15,33.93]
[1759183804073,0.67,214.19,214.15,33.93]
[1759183804274,4.66819806,214.22,214.16,0.67]
[1759183804482,0.67,214.21,214.16,0.67]
[1759183804681,0.67,214.2,214.16,0.67]
[1759183804978,5.33819806,214.22,214.17,0.67]
[1759183805178,0.67,214.21,214.17,0.67]
[1759183805560,0.67,214.2,214.15,38.59961595]
[1759183806667,5.33855671,214.2,214.15,38.59961595]
[1759183806864,0.67,214.19,214.15,33.26]
[1759183807077,0.67,214.19,214.15,33.93]
[1759183807398,0.67,214.18,214.15,33.26]
[1759183807564,0.67,214.17,214.15,33.26]
[1759183809190,0.67,214.16,214.08,0.67]
[1759183809567,0.67,214.16,214.07,59.24]
[1759183809765,0.67,214.15,214.07,73.20633805]
[1759183809966,17.01444754,214.14,214.07,73.20633805]
[1759183810166,0.67,214.13,214.07,47.20633805]
[1759183810588,0.67,214.12,214.02,2.88574302]
[1759183810894,0.67,214.11,214.04,0.67]
[1759183811599,3.12033,214.13,214.04,0.67]
[1759183811776,3.12033,214.15,214.06,26.0]
[1759183811978,5.33954776,214.16,214.08,4.67115097]
[1759183812194,5.33954776,214.16,214.09,0.67]
[1759183813281,5.33954776,214.16,214.1,4.67071461]
[1759183814596,7.78955323,214.17,214.11,0.68]
[1759183814794,4.66922323,214.17,214.11,0.68]
[1759183815186,5.38922323,214.17,214.11,0.68]
[1759183816581,5.38922323,214.17,214.11,5.35038421]
[1759183817076,4.66922323,214.17,214.11,5.35038421]
[1759183817388,0.72,214.16,214.11,5.35038421]
[1759183818203,0.72,214.15,214.11,5.35038421]
[1759183818795,0.72,214.14,214.09,0.68]
[1759183818996,51.8010481,214.13,214.02,0.68]
[1759183819292,13.59559401,214.11,214.02,0.68]
[1759183819502,13.59559401,214.09,214.02,0.68]
[1759183819889,0.72,214.08,214.02,0.68]
[1759183820877,4.67136917,214.07,214.02,0.68]
[1759183821079,0.72,214.06,214.0,37.9127535]
[1759183821306,0.71,214.05,214.0,0.68]
[1759183821497,0.71,214.04,214.0,33.24]
[1759183821808,18.1949162,214.07,214.0,33.24]
[1759183822014,0.71,214.04,214.0,33.24]
[1759183822781,5.38221122,214.04,214.0,33.24]
[1759183822981,0.71,214.03,213.98,33.24]
[1759183823189,0.71,214.02,213.98,33.24]
[1759183823699,4.67221122,214.04,213.98,33.24]
[1759183823700,0.71,214.01,213.98,33.24]
[1759183825201,5.38270447,214.01,213.98,33.24]
[1759183825502,5.38270447,214.01,213.91,26.0]
[1759183825503,0.71,214.0,213.91,26.0]
[1759183825679,6.51782856,214.01,213.92,59.95]
[1759183825680,0.71,213.99,213.92,59.95]
[1759183825882,0.71,213.99,213.93,0.71]
[1759183826810,4.67333395,213.98,213.93,0.71]
[1759183827110,5.38333395,213.98,213.93,0.71]
[1759183828992,0.71,213.97,213.93,0.71]
[1759183829585,0.71,214.0,213.94,0.71]
[1759183829790,2.55512409,214.01,213.94,0.71]
[1759183830191,7.22781857,214.01,213.94,5.38408582]
[1759183830413,6.51781857,214.01,213.94,5.38408582]
[1759183830606,0.71,214.0,213.94,5.38408582]
[1759183831915,6.51781857,214.01,213.91,0.71]
[1759183831916,1.84512409,213.98,213.91,0.71]
[1759183832159,0.71,213.97,213.91,0.71]
[1759183832409,14.05843623,213.99,213.91,0.71]
[1759183832410,5.38332136,213.99,213.91,5.38486141]
[1759183832616,10.0585924,213.99,213.92,0.71]
[1759183833403,5.38332136,213.99,213.92,5.38460943]
[1759183833806,5.38332136,213.99,213.93,33.26]
[1759183834390,13.59559401,213.98,213.9,0.1]
[1759183834710,14.30559401,213.98,213.9,0.81]
[1759183834913,25.99614622,213.98,213.9,0.81]
[1759183836119,4.67355236,213.97,213.9,5.48506706]
[1759183836317,0.71,213.96,213.9,0.81]
[1759183836914,0.71,213.96,213.9,5.48505338]
[1759183837411,0.71,213.96,213.9,0.81]
[1759183838437,17.06839247,213.96,213.9,0.1]
[1759183838644,13.59559401,213.95,213.9,0.1]
[1759183838838,27.65600692,213.95,213.9,0.1]
[1759183839012,0.71,213.94,213.9,0.1]
[1759183839212,0.71,213.93,213.9,0.1]
[1759183841427,5.38443571,213.93,213.9,0.1]
[1759183841936,13.59559401,213.92,213.9,0.1]
[1759183842239,27.65798415,213.92,213.9,0.1]
[1759183842444,0.71,213.91,213.9,0.1]
[1759183843041,28.36864335,213.91,213.9,0.1]
[1759183843619,33.04350661,213.91,213.9,0.1]
[1759183843848,13.59559401,213.9,213.79,0.1]
[1759183844053,1.84512409,213.86,213.79,0.1]
[1759183844221,0.71,213.85,213.8,26.0]
[1759183844420,0.71,213.84,213.8,26.0]
[1759183845143,0.71,213.84,213.79,26.1]
[1759183845357,0.71,213.84,213.79,0.81]
[1759183845513,5.38651276,213.84,213.79,0.81]
[1759183846430,4.67651276,213.84,213.79,0.81]
[1759183846625,0.71,213.83,213.79,0.81]
[1759183847226,0.71,213.82,213.79,0.1]
[1759183847628,0.71,213.81,213.79,0.1]
[1759183849131,0.71,213.83,213.79,0.1]
[1759183849923,14.06766547,213.84,213.79,0.1]
[1759183850125,0.71,213.83,213.79,0.1]
[1759183850324,5.38662673,213.83,213.79,0.1]
[1759183850646,4.67662673,213.83,213.79,0.1]
[1759183850842,0.71,213.82,213.79,0.1]
[1759183851057,0.71,213.81,213.79,0.1]
[1759183851646,0.66,213.8,213.79,0.1]
[1759183852343,5.33726847,213.8,213.79,0.1]
[1759183852545,20.77798657,213.8,213.79,0.1]
[1759183852721,18.93286248,213.8,213.79,0.1]
[1759183852928,14.25559401,213.8,213.79,0.1]
[1759183853240,18.93286248,213.8,213.79,0.1]
[1759183853837,28.32655858,213.8,213.79,0.1]
[1759183854043,33.00382705,213.8,213.79,0.1]
[1759183855948,4.67712201,213.81,213.79,0.1]
[1759183856327,5.33712201,213.81,213.79,0.1]
[1759183856728,10.01550708,213.81,213.79,0.1]
[1759183857948,4.67712201,213.81,213.79,0.1]
[1759183858551,4.67836166,213.82,213.79,0.1]
[1759183859054,13.59559401,213.84,213.79,0.76]
[1759183859552,14.25559401,213.84,213.79,0.76]
[1759183860128,0.66,213.84,213.79,5.43744634]
[1759183860330,0.66,213.87,213.8,0.66]
[1759183860528,5.33575839,213.87,213.8,0.66]
[1759183861325,0.66,213.87,213.8,0.66]
[1759183862352,5.33580314,213.87,213.81,4.67704971]
[1759183863034,5.33580314,213.87,213.81,5.33704971]
[1759183863854,5.33580314,213.87,213.81,0.66]
[1759183864837,5.33580314,213.87,213.81,5.33696431]
[1759183866354,5.33580314,213.87,213.81,38.61696431]
[1759183871942,5.33580314,213.87,213.81,33.94]
[1759183872139,0.66,213.86,213.8,33.28]
[1759183872357,16.4874466,213.85,213.79,0.1]
[1759183872556,0.66,213.84,213.79,0.1]
[1759183873443,13.59559401,213.82,213.79,0.1]
[1759183873770,0.66,213.81,213.79,0.1]
[1759183874146,13.59559401,213.82,213.79,0.1]
[1759183874345,0.66,213.81,213.79,0.1]
[1759183874549,0.71,213.8,213.79,0.1]
[1759183875253,5.38726847,213.8,213.79,0.1]
[1759183878357,4.67726847,213.8,213.79,0.1]
[1759183878773,5.38726847,213.8,213.79,0.1]
[1759183879974,0.71,213.8,213.79,0.1]
[1759183880668,4.67704971,213.81,213.79,0.1]
[1759183880874,5.38704971,213.81,213.79,0.1]
[1759183881269,5.34726847,213.8,213.79,0.1]
[1759183881962,4.67726847,213.8,213.79,0.1]
[1759183882163,5.34661226,213.83,213.79,0.81]
[1759183882482,0.67,213.82,213.79,0.1]
[1759183882679,4.67661226,213.83,213.79,0.81]
[1759183882860,4.67661226,213.83,213.79,0.1]
[1759183883059,4.67661226,213.83,213.79,0.81]
[1759183883255,5.34698463,213.82,213.79,0.1]
[1759183883658,0.67,213.81,213.79,0.1]
[1759183883860,4.67698463,213.82,213.79,0.1]
[1759183884278,0.67,213.81,213.79,0.1]
[1759183885389,4.67698463,213.82,213.79,0.1]
[1759183885764,4.67664626,213.83,213.8,0.71]
[1759183885970,3.09366578,213.84,213.8,0.71]
[1759183886173,0.67,213.84,213.8,0.71]
[1759183886379,3.76366578,213.84,213.8,0.71]
[1759183887078,11.69094402,213.85,213.79,0.1]
[1759183887079,13.59559401,213.81,213.79,0.1]
[1759183887457,14.26559401,213.81,213.79,0.1]
[1759183887686,17.35925979,213.81,213.79,0.1]
[1759183887983,14.26559401,213.81,213.79,0.1]
[1759183888186,17.35925979,213.81,213.79,0.1]
[1759183888377,14.26559401,213.81,213.79,0.1]
[1759183888569,4.67726847,213.8,213.79,0.1]
[1759183888882,4.67708792,213.81,213.79,0.81]
[1759183889256,4.67708792,213.81,213.79,0.1]
[1759183889472,7.7707537,213.81,213.79,0.1]
[1759183889679,4.67708792,213.81,213.79,0.1]
[1759183889881,7.7707537,213.81,213.79,0.1]
[1759183890061,4.67708792,213.81,213.79,0.1]
[1759183890262,8.4407537,213.81,213.79,0.1]
[1759183890486,0.67,213.8,213.79,0.1]
[1759183890682,3.76366578,213.8,213.79,0.1]
[1759183891063,3.09366578,213.8,213.79,0.1]
[1759183892059,7.77093425,213.8,213.79,0.1]
[1759183892385,4.67726847,213.8,213.79,0.1]
[1759183892779,3.09366578,213.81,213.79,0.1]
[1759183892973,7.77076235,213.81,213.79,0.1]
[1759183893158,7.77053689,213.82,213.79,0.1]
[1759183893361,4.67687111,213.82,213.8,0.71]
[1759183894160,5.34687111,213.82,213.79,0.1]
[1759183894373,4.67687111,213.82,213.79,0.1]
[1759183894574,4.67687111,213.82,213.79,0.81]
[1759183894982,3.09366578,213.83,213.79,0.1]
[1759183895161,3.09366578,213.83,213.8,0.71]
[1759183896265,4.67664383,213.83,213.8,0.71]
[1759183898198,4.67664383,213.83,213.79,0.1]
[1759183898199,3.09366578,213.85,213.81,0.71]
[1759183898362,10.0224136,213.88,213.81,0.71]
[1759183898791,8.47394599,213.88,213.81,0.71]
[1759183898984,5.34554249,213.88,213.81,0.71]
[1759183899492,8.47394599,213.88,213.82,4.67683097]
[1759183899712,5.34554249,213.88,213.83,0.71]
[1759183899893,8.47394599,213.88,213.84,0.71]
[1759183900065,5.34554249,213.88,213.84,0.71]
[1759183900386,8.47394599,213.88,213.84,0.71]
[1759183900591,4.67554249,213.88,213.83,4.67657484]
[1759183900758,3.1284035,213.88,213.85,0.71]
[1759183900966,3.1284035,213.89,213.85,0.71]
[1759183901270,3.1284035,213.89,213.86,0.71]
[1759183901689,3.1284035,213.89,213.84,33.28]
[1759183901880,3.1284035,213.89,213.87,0.71]
[1759183902487,0.67,213.92,213.85,4.67617488]
[1759183902488,3.1284035,213.91,213.88,0.71]
[1759183902787,3.1284035,213.91,213.85,4.67617488]
[1759183902788,3.1284035,213.9,213.86,0.71]
[1759183903091,3.1284035,213.9,213.87,0.71]
[1759183903394,0.67,213.91,213.87,0.71]
[1759183903770,3.7984035,213.91,213.87,0.71]
[1759183903976,0.67,213.91,213.87,0.71]
[1759183904184,3.7984035,213.91,213.87,0.71]
[1759183904484,0.67,213.91,213.87,0.71]
[1759183904690,3.7984035,213.91,213.87,0.71]
[1759183904884,0.67,213.91,213.87,0.71]
[1759183905269,0.67,213.91,213.87,33.99]
[1759183905868,8.47341238,213.91,213.87,33.99]
[1759183906181,5.34500888,213.91,213.87,33.99]
[1759183907890,4.67500888,213.91,213.87,33.28]
[1759183908091,4.67500888,213.91,213.88,0.71]
[1759183908471,0.67,213.91,213.87,33.28]
[1759183908673,0.67,213.91,213.87,33.99]
[1759183909074,5.34488147,213.91,213.87,33.99]
[1759183909380,0.67,213.9,213.88,33.26]
[1759183909580,4.67488147,213.91,213.88,33.26]
[1759183909784,5.34488147,213.91,213.88,33.26]
[1759183909980,8.47328497,213.91,213.88,33.26]
[1759183910298,0.67,213.9,213.8,26.0]
[1759183910509,17.39399751,213.89,213.81,33.26]
[1759183910666,3.7984035,213.88,213.82,33.26]
[1759183910873,0.67,213.87,213.82,33.26]
[1759183911068,0.67,213.86,213.82,33.26]
[1759183911276,0.69,213.85,213.82,33.26]
[1759183911468,0.69,213.84,213.82,33.26]
[1759183912012,0.69,213.83,213.81,33.26]
[1759183912298,0.69,213.82,213.79,0.1]
[1759183912499,13.59559401,213.83,213.79,0.1]
[1759183912675,0.69,213.81,213.79,0.1]
[1759183912878,0.69,213.8,213.79,0.1]
[1759183913100,30.43584075,213.84,213.79,0.1]
[1759183913302,14.28559401,213.83,213.79,0.1]
[1759183913673,0.69,213.82,213.79,0.1]
[1759183914596,0.69,213.81,213.79,0.1]
[1759183916099,5.36683097,213.82,213.79,0.1]
[1759183916302,0.69,213.81,213.79,0.1]
[1759183916677,4.67683097,213.82,213.79,0.1]
[1759183917097,0.69,213.85,213.8,0.67]
[1759183917596,0.69,213.85,213.79,0.1]
[1759183917597,8.4946588,213.85,213.81,0.67]
[1759183917781,0.69,213.84,213.79,5.44744876]
[1759183917979,0.69,213.84,213.8,0.67]
[1759183921704,7.8046588,213.85,213.81,0.67]
[1759183921897,3.8184035,213.85,213.82,33.26]
[1759183922095,0.69,213.84,213.82,33.26]
[1759183922408,3.1284035,213.85,213.82,33.26]
[1759183923001,136.96609073,213.86,213.82,33.26]
[1759183923181,3.12534728,213.85,213.82,33.26]
[1759183924204,3.12534728,213.85,213.83,0.67]
[1759183924411,131.6,213.86,213.84,0.67]
[1759183924612,14.06568675,213.89,213.85,26.0]
[1759183924785,3.12617102,213.91,213.86,33.93]
[1759183925109,5.3644463,213.93,213.87,0.67]
[1759183925307,8.49061732,213.93,213.87,5.34555292]
[1759183925504,0.69,213.93,213.88,0.67]
[1759183925901,5.3644496,213.93,213.88,0.67]
[1759183927101,5.3644496,213.93,213.88,5.34540249]
[1759183927504,5.3644496,213.93,213.88,4.67540249]
[1759183927814,4.6744496,213.93,213.88,5.34540249]
[1759183928002,0.69,213.92,213.88,5.34540249]
[1759183928209,4.67420772,213.94,213.88,4.67540249]
[1759183928510,7.80037874,213.94,213.88,5.34540249]
[1759183928708,0.69,213.93,213.88,5.34540249]
[1759183929014,4.67420772,213.94,213.88,5.34540249]
[1759183929015,0.69,213.92,213.88,5.34540249]
[1759183929918,0.69,213.92,213.88,0.67]
[1759183930513,0.69,213.92,213.88,5.34550023]
[1759183932010,0.69,213.93,213.88,4.67550023]
[1759183932221,0.69,213.93,213.89,3.56185259]
[1759183932415,3.12617102,213.95,213.91,2.89185259]
[1759183932611,3.12617102,213.96,213.93,2.89185259]
[1759183932819,0.69,213.95,213.93,2.89185259]
[1759183933192,3.12617102,213.96,213.93,2.89185259]
[1759183933595,3.81617102,213.96,213.93,2.89185259]
[1759183934302,7.800033,213.96,213.93,1.84814326]
[1759183934499,0.68,213.95,213.93,1.84814326]
[1759183935011,3.12617102,213.96,213.93,1.84814326]
[1759183935321,18.94958325,213.95,213.9,1.84814326]
[1759183935620,0.68,213.94,213.91,33.26]
[1759183935798,0.68,213.93,213.91,33.26]
[1759183936407,3.12617102,213.95,213.91,33.98]
[1759183936593,3.12617102,213.95,213.9,6.52308501]
[1759183936799,7.80014606,213.96,213.92,0.72]
[1759183936998,8.48014606,213.96,213.92,0.72]
[1759183938023,3.12617102,213.96,213.93,0.72]
[1759183938922,3.12617102,213.96,213.94,2.56814326]
[1759183939222,3.12617102,213.96,213.95,33.24]
[1759183939625,3.12617102,213.96,213.95,33.96]
[1759183940913,3.12617102,213.96,213.95,33.24]
[1759183941706,136.27355237,213.97,213.95,33.24]
[1759183942107,136.27355237,213.97,213.94,1.84814326]
[1759183942301,136.27355237,213.97,213.95,33.24]
[1759183942929,131.6,213.97,213.95,33.24]
[1759183944021,131.6,213.97,213.95,33.96]
[1759183944532,131.6,213.97,213.95,33.24]
[1759183945833,131.6,213.97,213.96,1.84814326]
[1759183951807,131.6,213.97,213.96,35.08814326]
[1759183953137,136.27356371,213.97,213.94,0.72]
[1759183953442,136.27356371,213.97,213.96,1.84814326]
[1759183953610,131.6,213.97,213.96,1.84814326]
[1759183954239,136.27355236,213.97,213.96,1.84814326]
[1759183955050,26.0,213.94,213.79,0.1]
[1759183955340,89.17608575,213.93,213.83,1.84814326]
[1759183955509,13.59559401,213.91,213.83,1.84814326]
[1759183955714,0.69,213.9,213.83,31.70814326]
[1759183955909,1.84814326,213.87,213.83,29.86]
[1759183956109,0.69,213.86,213.83,33.26]
[1759183956332,0.69,213.85,213.83,33.26]
[1759183956517,0.69,213.86,213.83,33.26]
[1759183956722,0.69,213.85,213.83,33.26]
[1759183957410,0.69,213.85,213.8,0.72]
[1759183957411,4.67639356,213.84,213.8,0.72]
[1759183957626,5.36639356,213.84,213.81,33.26]
[1759183958135,4.67639356,213.84,213.81,33.26]
[1759183958623,5.36639356,213.84,213.82,33.26]
[1759183958822,4.67639356,213.84,213.82,33.26]
[1759183959011,2.53814326,213.83,213.79,0.1]
[1759183959435,4.67683097,213.82,213.79,0.1]
[1759183961839,131.6,213.85,213.8,0.72]
[1759183962738,4.67597909,213.86,213.8,0.72]
[1759183963036,4.67573759,213.87,213.81,33.26]
[1759183963430,4.67573759,213.87,213.81,33.98]
[1759183965633,4.67573759,213.87,213.81,33.26]
[1759183965821,17.05443807,213.88,213.81,33.98]
[1759183966024,17.05443807,213.88,213.82,0.72]
[1759183969945,17.05443807,213.88,213.81,38.65696876]
[1759183970119,0.69,213.87,213.81,38.65696876]
[1759183970320,6.52336773,213.9,213.82,0.72]
[1759183970525,4.67522447,213.9,213.82,0.72]